Cogmind - Beta 15 @@@ ROGUE MODE // 2025.06.22 @ 21:08:12 Player: EX-OCT Result: Destroyed by H-66 Slayer with Gauss Rifle Performance ------------- Evolutions (4) 2000 Regions Visited (9) 1800 Robots Destroyed (127) 635 Value Destroyed (3907) 3907 Prototype IDs (6) 120 Alien Tech Used (0) 0 Bonus (3504) 3504 TOTAL SCORE: 11966 Bonus ------- High Alert Combat Kills 468 Follower Combat Kills 883 Awakened Behemoth Slayer 1000 Entered Garrisons 200 Used RIF Installer 1000 Friendly Fire -47 Cogmind --------- Core Integrity 0/850 Matter 300/300 Energy 150/150 System Corruption 2% Temperature Cool (0) Movement Treading (160) Location -6/Factory Parts ------- > --- POWER (1) -------- Light Angular Momentum Engine > --- PROPULSION (4) --- Medium Treads Improved Medium Treads Improved Medium Treads Improved Medium Treads > --- UTILITY (6) ------ Structural Scanner Advanced Signal Interpreter Advanced Melee Analysis Suite Relay Coupler [NC] (15) Relay Coupler [Programmer] (31) Relay Coupler [Programmer] (75) > --- WEAPON (4) ------- Gatling Laser Remote Datajack Axe > --- INVENTORY (5) ---- Relay Coupler [Programmer] (62) Relay Coupler [Proto] (9) Relay Coupler [Proto] (9) Relay Coupler [Proto] (9) CR-A16's Behemoth Slayer Peak State ------------ > --- POWER ------------ Light Angular Momentum Engine > --- PROPULSION ------- Improved Medium Treads Improved Medium Treads Heavy Treads > --- UTILITY ---------- Advanced Heat Sink Advanced Cooling System High-capacity Storage Unit Heavy Reflective Plating Relay Coupler [Sentry] > --- WEAPON ----------- Thermic Laser Thermic Laser Thermic Laser Thermic Laser > --- INVENTORY -------- Carbon-fiber Leg Carbon-fiber Leg High-capacity Storage Unit Relay Coupler [NC] Relay Coupler [NC] Relay Coupler [Grunt] Relay Coupler [Programmer] Relay Coupler [Programmer] Relay Coupler [Programmer] Relay Coupler [Programmer] Relay Coupler [Programmer] Dynamic Insulation System Mobile Refinery Mk. CCLXVII Thermic Laser Nova Cannon Datajack Mace Makeshift Sword CR-A16's Behemoth Slayer Self-destruct Interrupter [Rating: 82] Favorites ----------- Power Ion Engine Engine Ion Engine Power Core Nuclear Core Propulsion Armored Treads Treads Armored Treads Leg Flexi-carbon Leg Wheel Compact Wheel Hover Unit Airjet Flight Unit VTOL Module Utility Large Storage Unit Device Advanced Cooling System Storage Large Storage Unit Processor Melee Analysis Suite Hackware Relay Coupler [Programmer] Protection Core Shielding Weapon Beam Cannon Energy Gun Thermic Laser Energy Cannon Beam Cannon Ballistic Gun Heavy Battle Rifle Ballistic Cannon Flak Cannon Launcher Grenade Launcher Special Weapon Remote Datajack Impact Weapon Mace Slashing Weapon Makeshift Sword Piercing Weapon CR-A16's Behemoth Slayer Special Melee Weapon Datajack Build | -11 -10 -10 -9 -9 -7 -6 -6 -6 -6 ------- Run | Yrd Mat Min Mat Min Zio Pro Fac Gar Fac Slots Evolved 8 | . . . 2 . . . 6 . . Power . | . . . . . . . . . . Propulsion 2 | . . . 1 . . . 1 . . Utility 4 | . . . 1 . . . 3 . . Weapon 2 | . . . . . . . 2 . . Parts Attached 122 | 6 13 . 10 3 4 7 10 40 29 Power 10 | 1 1 . 1 . 1 1 . 4 1 Engine 8 | 1 1 . 1 . . 1 . 3 1 Core 2 | . . . . . 1 . . 1 . Reactor . | . . . . . . . . . . Propulsion 36 | 2 5 . 5 1 . 2 3 10 8 Treads 20 | 1 1 . 5 1 . 2 . 6 4 Leg 8 | . 2 . . . . . 3 3 . Wheel 3 | 1 2 . . . . . . . . Hover 1 | . . . . . . . . . 1 Flight 4 | . . . . . . . . 1 3 Utility 38 | 1 2 . 2 1 2 1 4 13 12 Device 10 | 1 . . . . 1 . 1 4 3 Storage 5 | . 1 . 1 . . . 1 2 . Processor 5 | . . . . . 1 . 1 . 3 Hackware 9 | . . . 1 . . . 1 3 4 Protection 9 | . 1 . . 1 . 1 . 4 2 Artifact . | . . . . . . . . . . Weapon 38 | 2 5 . 2 1 1 3 3 13 8 Energy Gun 9 | 1 1 . . . . . . 6 1 Energy Cannon 6 | . 3 . 1 . . . . 2 . Ballistic Gun 6 | 1 . . . . . 1 3 . 1 Ballistic Cannon 1 | . . . . . 1 . . . . Launcher 2 | . 1 . . . . 1 . . . Special Weapon 5 | . . . 1 . . . . 1 3 Impact Weapon 3 | . . . . 1 . . . 2 . Slashing Weapon 3 | . . . . . . 1 . . 2 Piercing Weapon 2 | . . . . . . . . 1 1 Special Melee Weapon 1 | . . . . . . . . 1 . Unidentified Prototypes 3 | . . . 1 . 1 . . . 1 Parts Lost 43 | . 4 . . 2 . 3 1 20 13 Power 4 | . 1 . . . . . . 3 . Propulsion 16 | . 2 . . . . 1 1 8 4 Utility 11 | . . . . 1 . . . 5 5 Weapon 12 | . 1 . . 1 . 2 . 4 4 Highest Loss Streak 8 | . 2 . . 2 . 3 1 8 3 To Critical Strikes 1 | . 1 . . . . . . . . Average Backups 11 | . 7 15 14 14 10 13 11 14 7 Power . | . . 1 . . . 1 1 . . Propulsion 1 | . 3 6 5 4 . . . . . Utility 4 | . 1 3 2 2 2 7 6 9 5 Weapon 3 | . 2 4 5 6 6 4 2 3 . Tool/Special . | . . . . . . . . . . Unused Backups 22 | . 2 . 1 4 3 1 . 3 8 Power 2 | . . . . . . . . 2 . Propulsion 8 | . 2 . 1 4 . . . 1 . Utility 8 | . . . . . . . . . 8 Weapon 4 | . . . . . 3 1 . . . Tool/Special . | . . . . . . . . . . Average Slot Usage (%) 90 | . 97 100 96 98 99 98 80 83 74 Engine 7 | . 13 14 11 11 7 2 6 5 3 Core 1 | . . . . . 3 8 . . . Treads 21 | . 13 14 27 33 33 32 12 14 13 Leg 1 | . . . . . . . 10 4 . Wheel 2 | . 13 14 3 . . . . . . Device 3 | . 9 . . . . . 2 7 5 Storage 8 | . 12 14 11 11 11 11 6 6 1 Processor 4 | . . . . . 5 11 9 4 10 Hackware 5 | . . . 8 3 . . . 7 17 Protection 8 | . 4 14 11 17 16 11 6 4 1 Energy Gun 3 | . 10 . . . . . . 10 2 Energy Cannon 10 | . 7 28 20 20 18 3 . 2 . Ballistic Gun 3 | . 9 . . . . 5 23 3 . Slashing Weapon 1 | . . . . . . 7 . 3 4 Peak Build Rating 82 | 6 8 8 21 21 29 39 64 82 72 Average Rating 35 | 4 7 8 17 19 22 30 51 64 54 On Entrance 26 | . 6 8 8 21 19 29 39 61 72 Naked Turns . | . . . . . . . . . . Heaviest Build 94 | 8 32 32 33 34 38 41 52 94 86 Greatest Support 130 | 16 20 16 60 60 60 68 68 130 118 Greatest Overweight (x) 14 | . 2 1 1 . . . 2 11 14 Average Overweight (x) . | . . 1 . . . . . . . Largest Inventory Capacity 20 | 5 15 15 15 15 15 15 15 20 20 Average Capacity 14 | 5 13 15 15 15 15 15 15 17 7 Most Carried 20 | 2 15 15 15 15 15 15 15 20 20 Average Carried 12 | . 7 15 14 14 14 14 12 15 7 Final Capacity 20 | 5 15 15 15 15 15 15 15 20 5 Final Carried 19 | 2 15 15 15 15 15 15 11 19 5 Class Distribution -------------------- 56% | Mutant 16% | Bothacker-Mutant 11% | Bothacker-Tank 3% | Derelict-Gunner 3% | Bothacker-Gladiator Dominant Class ---------------- Mutant | -10/Materials Mutant | -10/Mines Mutant | -9/Materials Mutant | -9/Mines Mutant | -7/Zion Mutant | -6/Proximity Caves Derelict-Gunner | -6/Factory Bothacker-Tank | -6/Garrison Bothacker-Mutant | -6/Factory Resources | -11 -10 -10 -9 -9 -7 -6 -6 -6 -6 ----------- Run | Yrd Mat Min Mat Min Zio Pro Fac Gar Fac Matter Collected 2228 | 284 335 7 173 66 50 152 139 699 323 Remotely . | . . . . . . . . . . Salvage Created 4532 | 105 898 48 449 352 . 271 54 1674 681 Parts 207 | 8 50 3 28 15 . 10 4 66 23 Haulers Intercepted 1 | . 1 . . . . . . . . Recyclers Shooed 4 | . 2 . . . . . . . 2 Parts Field Recycled . | . . . . . . . . . . Retrieved Matter . | . . . . . . . . . . Parts Self-Destructed 8 | . . . . . . 8 . . . Prevented . | . . . . . . . . . . Kills | -11 -10 -10 -9 -9 -7 -6 -6 -6 -6 ------- Run | Yrd Mat Min Mat Min Zio Pro Fac Gar Fac Combat Hostiles Destroyed 100 | . 20 3 12 11 . 11 1 31 11 Melee 14 | . . . . 2 . . . 6 6 Guns 33 | . 9 . . . . . 1 21 2 Cannons 25 | . 5 3 9 6 . 1 . . 1 AOE 19 | . 6 . 3 . . 10 . . . Classes Destroyed 17 | 2 6 . 3 . . . 1 4 1 Worker 4 | . 1 . 1 2 . . . . . Builder 3 | . . . . . . . . . 3 Tunneler 4 | 2 1 . . 1 . . . . . Hauler 1 | . 1 . . . . . . . . Recycler 5 | 1 2 . . 1 . . . . 1 Mechanic 1 | . . . 1 . . . . . . Operator 4 | . 2 . 2 . . . . . . Watcher 4 | . 2 . 2 . . . . . . Swarmer 52 | . 9 3 6 8 . 5 . 17 4 Grunt 31 | . 11 . 2 2 . 6 . 6 4 Brawler 4 | . . . . . . . . 4 . Duelist 3 | . . . 1 1 . . . . 1 Sentry 4 | . . . 3 . . . . . 1 Specialist 2 | . . . . . . . . 2 . Hunter 2 | . . . . . . . 1 . 1 Programmer 1 | . . . . . . . . 1 . Behemoth 2 | . . . . . . . . 2 . Best Kill Streak 11 | 3 4 3 4 7 . 11 1 7 2 Combat Bots Only 11 | . 3 3 4 6 . 11 1 7 2 Max Kills in Single Turn 4 | 1 4 1 4 2 . 3 1 2 1 Gunslinging 1 | . . . . . . . . 1 . Exploded 3 | . 3 . 3 . . 3 . . . Melee 1 | . . . . 1 . . . 1 1 Uniques/NPCs Destroyed . | . . . . . . . . . . Combat | -11 -10 -10 -9 -9 -7 -6 -6 -6 -6 -------- Run | Yrd Mat Min Mat Min Zio Pro Fac Gar Fac Hostile Shots Fired 759 | . 75 19 48 51 . 56 27 337 146 Missed 222 | . 20 4 11 17 . 17 12 96 45 Hits 537 | . 55 15 37 34 . 39 15 241 101 Melee 7 | . . . 2 1 . . . 2 2 Projectile 530 | . 55 15 35 33 . 39 15 239 99 AOE 2 | . . . . . . . . . 2 Critical Strikes 7 | . 1 . . . . 1 1 2 2 Actively Blocked 2 | . . . . . . 1 . 1 . Damage Taken 8356 | . 579 109 484 348 . 825 185 3989 1837 Core 1193 | . 114 25 58 14 . 117 20 477 368 Absorbed by Shields 86 | . . . . . . . . 86 . Redirected to Shielding 135 | . 2 5 12 3 . 26 7 50 30 Regen/Repaired (Parts) 39 | . . . . . . . . . 39 Core Remaining (%) 65 | 100 . 44 . . . 52 . . . Volleys Fired 230 | 8 64 8 32 18 . 6 6 58 30 Largest 4 | 2 2 2 2 2 . 2 4 4 4 Hottest 368 | 60 120 120 160 128 . 105 132 368 368 Shots Fired 504 | 16 124 13 56 31 . 8 22 178 56 Gun 332 | 16 94 . . . . . 22 169 31 Cannon 142 | . 27 13 46 31 . 2 . 5 18 Launcher 10 | . 3 . 1 . . 6 . . . Special 20 | . . . 9 . . . . 4 7 Kinetic 143 | 8 48 . . . . 1 22 59 5 Thermal 332 | . 73 13 55 31 . 1 . 115 44 Explosive 10 | . 3 . 1 . . 6 . . . Electromagnetic 8 | 8 . . . . . . . . . Robot Hit Streak 11 | 6 11 7 10 10 . 6 5 7 6 Robot Miss Streak 8 | 2 4 3 3 3 . 3 1 8 3 Penetration Max . | . . . . . . . . . . Secondary Targets 10 | . 2 . . . . . . 8 . Max Gunslinging Chain 1 | . 1 . . . . . . 1 . Shots Hit Robots 379 | 10 75 7 29 33 . 6 16 141 62 Core Hits 177 | 4 39 3 17 9 . 28 5 52 20 Critical Kills 2 | . 1 . 1 . . . . . . Critical Parts Destroyed 4 | . . . . 3 . . . 1 . Critical Strikes 39 | . 4 . 1 3 . 1 . 24 6 Burn 26 | . 3 . . . . . . 20 3 Meltdown 1 | . . . 1 . . . . . . Destroy 1 | . 1 . . . . . . . . Smash 4 | . . . . 3 . . . 1 . Sever 6 | . . . . . . 1 . 2 3 Impale 1 | . . . . . . . . 1 . Melee Attacks 150 | . . . . 15 . 5 2 75 53 Impact 27 | . . . . 15 . . . 12 . Slashing 94 | . . . . . . 5 2 37 50 Piercing 21 | . . . . . . . . 18 3 Sneak Attacks 7 | . . . . 1 . . . 2 4 Combat Hostiles 1 | . . . . . . . . 1 . Follow-up Attacks 5 | . . . . . . . . 5 . Damage Inflicted 10692 | 127 1319 130 799 839 . 1395 283 3583 2217 Guns 3581 | 127 789 . . . . . 281 2005 379 Cannons 2088 | . 275 130 605 460 . 28 . 68 522 Explosions 1814 | . 246 . 149 . . 1220 . . 199 Melee 3098 | . . . . 356 . 147 . 1483 1112 Ramming 87 | . 9 . 21 23 . . 2 27 5 Kinetic 1708 | 60 398 . . . . 7 281 871 91 Thermal 4117 | . 666 130 629 460 . 21 . 1202 1009 Explosive 1615 | . 246 . 149 . . 1220 . . . Electromagnetic 67 | 67 . . . . . . . . . Impact 437 | . . . . 356 . . . 81 . Slashing 2276 | . . . . . . 147 . 1017 1112 Piercing 385 | . . . . . . . . 385 . Highest Corruption 2 | . 1 1 . . . . . 1 2 Average Corruption 1 | . 1 1 . . . . . 1 1 Corruption Purged . | . . . . . . . . . . Corruption Blocked . | . . . . . . . . . . Effects 23 | . 6 1 . . . . . 4 12 Message Errors 4 | . 1 . . . . . . 1 2 Matter Fused 9 | . 3 1 . . . . . 2 3 Heat Flow Errors 1 | . 1 . . . . . . . . Parts Rejected 1 | . . . . . . . . . 1 Data Loss (minor) 5 | . 1 . . . . . . . 4 Data Loss (major) 2 | . . . . . . . . 1 1 Misfires 1 | . . . . . . . . . 1 Overload Shots . | . . . . . . . . . . Overflow Damage 575 | . 19 . 15 192 . 21 . 99 229 Projectiles 59 | . 16 . 7 2 . . . . 34 Explosions 101 | . 3 . 8 . . 21 . . 69 Melee 415 | . . . . 190 . . . 99 126 Knockbacks . | . . . . . . . . . . Impact . | . . . . . . . . . . Kinetic . | . . . . . . . . . . Secondary . | . . . . . . . . . . Self-Inflicted Damage 209 | . 26 . . . . 44 . . 139 Shots 5 | . 1 . . . . 2 . . 2 Rammed 19 | . 4 . 2 5 . . . 4 4 Targets Rammed 22 | . 4 . 3 6 . . 1 4 4 Kicked 1 | . . . . . . . 1 . . Crushed 2 | . . . 1 1 . . . . . Highest Temperature 315 | . 198 300 309 315 . 68 106 183 280 Average Temperature 75 | . 54 168 67 118 . 36 46 68 140 Received Heat Transfer 1611 | . 201 . 135 84 . 162 24 651 354 Siege Activations . | . . . . . . . . . . Martial Activations . | . . . . . . . . . . Shielding Activations . | . . . . . . . . . . Robots Disrupted . | . . . . . . . . . . Combat Hostiles . | . . . . . . . . . . Robots Corrupted 4 | . . . 1 3 . . . . . Combat Hostiles 3 | . . . . 3 . . . . . Parts Fried 10 | . . . 2 6 . . . . 2 Impact Corruptions 13 | . . . 1 10 . . . 2 . Robots Melted 6 | . . . 1 . . . . 3 2 Combat Hostiles 5 | . . . . . . . . 3 2 Parts Melted 25 | . 5 1 4 2 . . . 12 1 Heat Transferred 11173 | . 1887 259 1234 851 . 37 . 5224 1681 Parts Sabotaged . | . . . . . . . . . . Parts Stolen . | . . . . . . . . . . Parts Stripped . | . . . . . . . . . . Power Chain Reactions . | . . . . . . . . . . Alert | -11 -10 -10 -9 -9 -7 -6 -6 -6 -6 ------- Run | Yrd Mat Min Mat Min Zio Pro Fac Gar Fac Maximum Alert Level 4 | . 1 . 1 1 . . . 4 3 Low Security (%) 46 | 100 86 100 41 88 . . 100 20 . Level 1 19 | . 13 . 58 11 . . . 26 . Level 2 18 | . . . . . . . . 19 65 Level 3 14 | . . . . . . . . 26 34 Level 4 1 | . . . . . . . . 6 . Level 5 . | . . . . . . . . . . High Security . | . . . . . . . . . . Max Security . | . . . . . . . . . . Peak Influence 1135 | 10 299 166 300 242 . . 40 1135 838 Initial 586 | . . 106 29 102 . . 40 7 586 Average 338 | 1 69 123 194 116 . . 7 519 695 Influence Increases 4440 | 15 641 70 710 330 . 275 59 1371 969 Destroy 0b10 Robot/C 2540 | . 400 60 400 220 . 260 20 760 420 Destroy 0b10 Robot/NC 160 | 15 45 . 35 20 . . . 15 30 Destroy Leader 352 | . 86 10 96 30 . . 10 40 80 Allied During Kill 154 | . . . 67 . . 15 2 25 45 Successful Hack 106 | . 26 . 44 . . . 10 26 . Select Force Hacks 90 | . 60 . 30 . . . . . . Disable Machine 60 | . . . . . . . . . 60 Anti-Garrison Action 300 | . . . . . . . . 300 . Destroy Structure 198 | . 24 . 23 . . . 2 85 64 Partial Spotted 15 | . . . . . . . 15 . . Lose Combat Pursuer 465 | . . . 15 60 . . . 120 270 Influence Decreases 3667 | 15 366 269 522 550 44 210 114 263 1314 Entered New Map 982 | . . 169 47 162 44 . 25 3 532 Time Decay 1975 | 15 326 100 415 368 . 160 89 . 502 Lost Part 420 | . 40 . . 20 . 30 . 200 130 Lost Ally 290 | . . . 60 . . 20 . 60 150 Squads Dispatched 21 | . 4 . 4 . . . 1 . 12 Investigation 6 | . 2 . 2 . . . . . 2 Extermination 3 | . . . . . . . 1 . 2 Reinforcement 8 | . 2 . 2 . . . . . 4 Assault 1 | . . . . . . . . . 1 Garrison 3 | . . . . . . . . . 3 Intercept . | . . . . . . . . . . Searches Triggered . | . . . . . . . . . . Construction Impeded 1 | . . . . . . . . . 1 Haulers Reinforced 2 | . . . . . . . . . 2 Active Scanning Responses . | . . . . . . . . . . Cargo Convoy Interrupts . | . . . . . . . . . . Stealth | -11 -10 -10 -9 -9 -7 -6 -6 -6 -6 --------- Run | Yrd Mat Min Mat Min Zio Pro Fac Gar Fac Distress Signals 11 | . 2 . 4 . . . . . 5 Communications Jammed . | . . . . . . . . . . Distress Signals . | . . . . . . . . . . Times Spotted 196 | . 31 3 30 15 . 13 4 46 54 Peak Tracking Total 13 | . 4 3 5 7 . 13 2 10 6 Tactical Retreats 24 | . . . 1 2 . . . 6 15 Traps | -11 -10 -10 -9 -9 -7 -6 -6 -6 -6 ------- Run | Yrd Mat Min Mat Min Zio Pro Fac Gar Fac Traps Triggered 8 | . . . 1 . . . . 5 2 Indirectly . | . . . . . . . . . . Trap Hack Attempts . | . . . . . . . . . . Triggered . | . . . . . . . . . . Disarmed . | . . . . . . . . . . Reprogrammed . | . . . . . . . . . . Reused . | . . . . . . . . . . Traps Extracted . | . . . . . . . . . . Installed . | . . . . . . . . . . Triggered . | . . . . . . . . . . Most Traps Carried 5 | . . . . 5 5 . . . . Machines | -11 -10 -10 -9 -9 -7 -6 -6 -6 -6 ---------- Run | Yrd Mat Min Mat Min Zio Pro Fac Gar Fac Machines Disabled 10 | . 1 . . . . 2 . 3 4 Max in Single Turn 3 | . 1 . . . . 1 . 1 3 Garrison Relay 2 | . . . . . . . . 2 . Machines Repaired . | . . . . . . . . . . Machines Dismantled . | . . . . . . . . . . Machines Sabotaged . | . . . . . . . . . . Overloaded Fab Kills . | . . . . . . . . . . Hacking | -11 -10 -10 -9 -9 -7 -6 -6 -6 -6 --------- Run | Yrd Mat Min Mat Min Zio Pro Fac Gar Fac Machines Accessed 28 | . 9 . 8 . . 1 3 3 4 Terminals 23 | . 7 . 7 . . 1 1 3 4 Fabricators . | . . . . . . . . . . Repair Stations . | . . . . . . . . . . Recycling Units 3 | . 2 . 1 . . . . . . Scanalyzers 1 | . . . . . . . 1 . . Garrison Access 1 | . . . . . . . 1 . . Total Hacks 87 | . 28 . 33 . . 4 5 7 10 Successful 45 | . 18 . 19 . . 4 2 2 . Failed 41 | . 10 . 13 . . . 3 5 10 Catastrophic 3 | . 1 . . . . . . . 2 Database Lockouts 1 | . . . 1 . . . . . . Manual 68 | . 27 . 32 . . . 2 2 5 Terminals 80 | . 25 . 32 . . 4 2 7 10 Fabricators . | . . . . . . . . . . Repair Stations . | . . . . . . . . . . Recycling Units 4 | . 3 . 1 . . . . . . Scanalyzers 1 | . . . . . . . 1 . . Garrison Access 2 | . . . . . . . 2 . . Terminal Hacks 18 | . 5 . 7 . . 4 . 2 . Record 4 | . . . . . . 4 . . . Robot Analysis 4 | . 3 . 1 . . . . . . Prototype ID Bank 1 | . . . 1 . . . . . . Emergency Access Points 1 | . . . . . . . . 1 . Terminal Index 2 | . 1 . 1 . . . . . . Garrison Index 1 | . . . 1 . . . . . . Recall Investigation 1 | . . . 1 . . . . . . Zone Layout 3 | . 1 . 2 . . . . . . Patrol Navigation 1 | . . . . . . . . 1 . Fabricator Hacks . | . . . . . . . . . . Repair Station Hacks . | . . . . . . . . . . Recycling Unit Hacks . | . . . . . . . . . . Scanalyzer . | . . . . . . . . . . Garrison Access Hacks 1 | . . . . . . . 1 . . Unlock Access 1 | . . . . . . . 1 . . Unauthorized Hacks 26 | . 13 . 12 . . . 1 . . Terminals 23 | . 11 . 11 . . . 1 . . Assimilate 1 | . 1 . . . . . . . . Botnet 10 | . 4 . 5 . . . 1 . . Operators 1 | . . . 1 . . . . . . Skim 11 | . 6 . 5 . . . . . . Fabricators . | . . . . . . . . . . Repair Stations . | . . . . . . . . . . Recycling Units 3 | . 2 . 1 . . . . . . Tunnel 3 | . 2 . 1 . . . . . . Scanalyzers . | . . . . . . . . . . Garrison Access . | . . . . . . . . . . Data Cores Recovered . | . . . . . . . . . . Used . | . . . . . . . . . . Hacking Detections 25 | . 8 . 7 . . . 3 3 4 Full Trace Events 2 | . 1 . . . . . . . 1 Feedback Events 1 | . 1 . . . . . . . . Corruption 1 | . 1 . . . . . . . . Feedback Blocked . | . . . . . . . . . . Robot Schematics Acquired . | . . . . . . . . . . Robots Built . | . . . . . . . . . . Authchips . | . . . . . . . . . . Time . | . . . . . . . . . . Total Robot Build Rating . | . . . . . . . . . . Part Schematics Acquired . | . . . . . . . . . . Parts Built . | . . . . . . . . . . Authchips . | . . . . . . . . . . Time . | . . . . . . . . . . Total Part Build Rating . | . . . . . . . . . . Parts Repaired . | . . . . . . . . . . Time . | . . . . . . . . . . Parts Recycled . | . . . . . . . . . . Recycled Matter . | . . . . . . . . . . Retrieved Matter . | . . . . . . . . . . Retrieved Components . | . . . . . . . . . . Parts Scanalyzed . | . . . . . . . . . . Part Schematics Acquired . | . . . . . . . . . . Parts Damaged . | . . . . . . . . . . Bothacking | -11 -10 -10 -9 -9 -7 -6 -6 -6 -6 ------------ Run | Yrd Mat Min Mat Min Zio Pro Fac Gar Fac Used RIF Installer 2 | . . . . . . . . 2 . Watcher Feeds 1 | . . . . . . . . 1 . Robots Hacked 10 | . . . . . . . . 5 5 Non-combat 1 | . . . . . . . . . 1 Combat 9 | . . . . . . . . 5 4 Robot Hacks Applied 10 | . . . . . . . . 5 5 streamctrl_high 1 | . . . . . . . . . 1 formatsys_low 1 | . . . . . . . . . 1 formatsys_high 8 | . . . . . . . . 5 3 Relay Couplers Released 11 | . . . . . . . . 7 4 Machine Destruction 7 | . . . . . . . . 7 . Programmers 4 | . . . . . . . . . 4 Attached 7 | . . . . . . . . 3 4 Fabnet Peak Effective % . | . . . . . . . . . . Robots Rewired 1 | . . . . . . . . 1 . Allies Hacked 3 | . . . . . . . . 1 2 Hacks Repelled . | . . . . . . . . . . Allies | -11 -10 -10 -9 -9 -7 -6 -6 -6 -6 -------- Run | Yrd Mat Min Mat Min Zio Pro Fac Gar Fac Total Allies 18 | . . 3 . . 2 . . 6 7 Largest Group 4 | . . 3 3 . 2 2 1 2 4 Highest-Rated Group 169 | . . 40 40 . 40 40 20 94 169 Highest-Rated Ally 85 | . . 16 16 . 20 20 20 85 55 Total Orders 4 | . . . . . . . . 2 2 STAY 1 | . . . . . . . . 1 . FOLLOW 1 | . . . . . . . . 1 . AID 2 | . . . . . . . . . 2 Ally Attacks 120 | . . . 44 . . 12 . 25 39 Total Damage 3118 | . . . 436 . . 131 . 1063 1488 Kills 30 | . . . 9 . . 2 . 7 12 Allies Corrupted . | . . . . . . . . . . Allies Melted . | . . . . . . . . . . Intel | -11 -10 -10 -9 -9 -7 -6 -6 -6 -6 ------- Run | Yrd Mat Min Mat Min Zio Pro Fac Gar Fac Active Infowar (turns) 1448 | 12 707 . . . . . . . 729 Structural 729 | . . . . . . . . . 729 Seismic 719 | 12 707 . . . . . . . . Robot Analysis Total 4 | . 3 . 1 . . . . . . Derelict Logs Recovered 4 | . . . . 1 1 2 . . . Drone Launches . | . . . . . . . . . . Drone Recoveries . | . . . . . . . . . . Exploration | -11 -10 -10 -9 -9 -7 -6 -6 -6 -6 ------------- Run | Yrd Mat Min Mat Min Zio Pro Fac Gar Fac Turns Passed 9048 | 77 1035 214 1015 853 1639 489 442 1934 1350 Spaces Moved 5230 | 43 542 168 570 432 951 269 277 853 1125 Core 9 | 1 . . . . . . . 7 1 Treads 3235 | . 115 . 377 432 951 269 102 597 392 Legs 439 | . 15 . . . . . 175 249 . Wheels 815 | 42 412 168 193 . . . . . . Hover 87 | . . . . . . . . . 87 Flight 645 | . . . . . . . . . 645 Fastest Speed 24 | 50 100 115 115 170 170 166 120 120 24 Average Speed 141 | 98 141 115 151 170 170 167 140 158 87 Slowest Speed 750 | 100 260 115 250 170 170 170 260 600 750 Overloaded Moves 15 | . . . . . . . . . 15 Propulsion Burnouts . | . . . . . . . . . . Robots Hopped . | . . . . . . . . . . Potential Cave-ins . | . . . . . . . . . . Cave-ins Triggered . | . . . . . . . . . . Exploration Rate (%) 52 | 5 82 42 54 84 80 54 9 69 41 Regions Visited 9 Branch Regions 4 Pre-discovered Areas 7 | . 2 . 2 1 2 . . . . Known Exits Taken 2 | . . . . . . 1 1 . . Unknown Exits Taken 6 | 1 1 1 1 1 1 . . . . Scrap Searched 9 | . . . . 1 4 4 . . . Spaces Dug 38 | . . . 8 . . . 2 8 20 Terrain Destroyed 112 | . 20 . 21 . . 16 2 10 43 Melee 30 | . . . . . . . 2 8 20 Projectile 12 | . . . 8 . . . . 2 2 AOE 70 | . 20 . 13 . . 16 . . 21 Terrain Rammed . | . . . . . . . . . . Walls Destroyed . | . . . . . . . . . . Machines Disabled . | . . . . . . . . . . Actions | -11 -10 -10 -9 -9 -7 -6 -6 -6 -6 --------- Run | Yrd Mat Min Mat Min Zio Pro Fac Gar Fac Total 6215 | 58 686 175 647 489 979 297 310 1217 1357 Wait 244 | . 37 . 10 . 2 . 10 98 87 Move 5222 | 42 541 167 569 431 950 268 277 852 1125 Hop . | . . . . . . . . . . Pick Up 61 | 2 16 . 4 7 10 4 . 18 . Fast Attach 76 | 6 6 . 5 . 2 2 5 26 24 Attach 24 | . 3 . . 2 . 1 4 8 6 Detach 10 | . 3 . . . . . 1 5 1 Swap 55 | . 7 . 13 5 2 5 2 20 1 Drop 90 | . 5 . 11 5 13 6 2 24 24 Fire 230 | 8 64 8 32 18 . 6 6 58 30 Melee 140 | . . . . 15 . 5 2 66 52 Ram 1 | . 1 . . . . . . . . Kick 1 | . . . . . . . 1 . . Crush 20 | . 3 . 3 6 . . . 4 4 Escape Stasis 30 | . . . . . . . . 30 . Rewire 11 | . . . . . . . . 8 3 Trap . | . . . . . . . . . . Miscellaneous . | . . . . . . . . . . Route ------- -11/Scrapyard -10/Materials (discovered 4 exits: *Mat x2 / [*Min x2]) -10/Mines -9/Materials (discovered 4 exits: *Mat x3 / [*Min]) -9/Mines (discovered 2 exits: *Mat / [*Zio]) -7/Zion -6/Proximity Caves -6/Factory (discovered 3 exits: [*Fac] / Low / Gar) -6/Garrison (discovered 2 exits: *Fac x2) -6/Factory (discovered 2 exits: [*Fac] / [*Ext]) History --------- Turn | Location | Event 11 | -11/Scrapyard | Discovered new exit (range 15) 78 | -11/Scrapyard | Entered Materials 151 | -10/Materials | Discovered new exit (range 16) 302 | -10/Materials | Build established: Mutant 436 | -10/Materials | Discovered new exit (range 16) 478 | -10/Materials | Discovered new exit (range 8) 932 | -10/Materials | Discovered new exit (range 4) 1113 | -10/Materials | Entered Mines 1118 | -10/Mines | Core integrity fell below 50% 1233 | -10/Mines | Assembled infested the area 1238 | -10/Mines | Assisted by a Guerilla fighting off Assembled 1312 | -10/Mines | Discovered new exit (range 11) 1323 | -10/Mines | Assisted by bots powering up and referring to "LRC-V3" 1327 | -10/Mines | Entered Materials 1327 | -9/Materials | Accompanied by 3 allies 1327 | -9/Materials | Evolved 2 slots: Propulsion x1, Utility x1 1414 | -9/Materials | Central database locked down 1414 | -9/Materials | Discovered new exit (range 16) 1638 | -9/Materials | Discovered new exit (range 15) 1922 | -9/Materials | Learned location of 1 exit from Storage 1985 | -9/Materials | Identified exit to Materials 2039 | -9/Materials | Learned location of 1 exit from Materials 2113 | -9/Materials | Learned location of Recycling (-7) 2254 | -9/Materials | Learned Storage trap positions 2342 | -9/Materials | Entered Mines 2343 | -9/Mines | Learned location of Storage (-7) 2383 | -9/Mines | Learned Materials stockpile data 2393 | -9/Mines | Discovered exit to Materials (range 5) 2690 | -9/Mines | A weapon hastily lodged in a ceiling crevice suddenly fell to the ground 3112 | -9/Mines | A Derelict revealed a hidden shortcut to a safe place 3143 | -9/Mines | Found a hidden stash of uninstalled traps 3195 | -9/Mines | Entered Zion 3331 | -7/Zion | Gained Derelict followers 3437 | -7/Zion | Received a visual enhancement algorithm 3580 | -7/Zion | Discovered new exit (range 15) 3825 | -7/Zion | Learned Factory emergency access door positions 3837 | -7/Zion | Learned Factory emergency access door positions 3940 | -7/Zion | Found Prototype Device 3940 | -7/Zion | Identified Mobile Refinery Mk. CCLXVII 4010 | -7/Zion | Found CR-A16's Pointy Stick 4133 | -7/Zion | Learned location of Warlord (-4) 4597 | -7/Zion | Found Relay Coupler [Programmer] 4600 | -7/Zion | Found Relay Coupler [Programmer] 4606 | -7/Zion | Found Relay Coupler [Programmer] 4609 | -7/Zion | Found Relay Coupler [Programmer] 4612 | -7/Zion | Found Relay Coupler [Programmer] 4834 | -7/Zion | Entered Proximity Caves 4834 | -6/Proximity Caves | Accompanied by 2 allies 4902 | -6/Proximity Caves | Learned 8 Factory zone layouts 4918 | -6/Proximity Caves | Identified exit to Factory 4979 | -6/Proximity Caves | Attracted the attention of an 0b10 base 5022 | -6/Proximity Caves | Destroyed 11 combat bots 5032 | -6/Proximity Caves | Lost 3 parts (1n2w) 5038 | -6/Proximity Caves | Learned Research terminal intel 5038 | -6/Proximity Caves | Learned Extension garrison access intel 5323 | -6/Proximity Caves | Entered Factory 5323 | -6/Factory | Accompanied by 1 ally 5323 | -6/Factory | Evolved 6 slots: Propulsion x1, Utility x3, Weapon x2 5324 | -6/Factory | Identified exit to Lower Caves 5730 | -6/Factory | Discovered new exit (range 12) 5765 | -6/Factory | Identified exit to Garrison 5765 | -6/Factory | Entered Garrison 5765 | -6/Garrison | Accompanied by 1 ally 5773 | -6/Garrison | Spotted B-90 Cyclops 5773 | -6/Garrison | Spotted B-86 Titan 5825 | -6/Garrison | Build established: Derelict-Gunner 5834 | -6/Garrison | Garrison Relay disabled 5851 | -6/Garrison | Installed Relay Interface Framework 5867 | -6/Garrison | Triggered checkpoint 5949 | -6/Garrison | Allies destroyed B-86 Titan 5995 | -6/Garrison | Lost 3 parts (1p1n1w) 6043 | -6/Garrison | Revealed the true nature of CR-A16's Pointy Stick 6068 | -6/Garrison | Destroyed B-90 Cyclops 6077 | -6/Garrison | Rewired B-75 Beast 6156 | -6/Garrison | Triggered checkpoint 6224 | -6/Garrison | Lost 8 parts (1p3n4u) 6226 | -6/Garrison | Destroyed 7 combat bots 6267 | -6/Garrison | Triggered checkpoint 6318 | -6/Garrison | Lost 3 parts (3w) 6482 | -6/Garrison | Found Hvy. Reflective Plating 6663 | -6/Garrison | Triggered checkpoint 6692 | -6/Garrison | Garrison Relay disabled 6755 | -6/Garrison | Build established: Bothacker-Tank 6829 | -6/Garrison | Destroyed Beast 5a 6895 | -6/Garrison | Discovered new exit (range 8) 6945 | -6/Garrison | Triggered checkpoint 7127 | -6/Garrison | Triggered checkpoint 7292 | -6/Garrison | Core integrity fell below 50% 7414 | -6/Garrison | P-60 Hacker assimilated allied Guardian 5a 7514 | -6/Garrison | Found Relay Coupler [Proto] 7517 | -6/Garrison | Found Relay Coupler [Proto] 7520 | -6/Garrison | Found Relay Coupler [Proto] 7523 | -6/Garrison | Found Relay Coupler [Proto] 7557 | -6/Garrison | Discovered new exit (range 10) 7644 | -6/Garrison | Expanded RIF knowledge: Watcher Feeds 7699 | -6/Garrison | Entered Factory 7699 | -6/Factory | Accompanied by 2 allies 7757 | -6/Factory | Garrison activated, responded to threat 7934 | -6/Factory | Lost 3 parts (1n2w) 8025 | -6/Factory | Discovered new exit (range 6) 8102 | -6/Factory | Core integrity fell below 20% 8399 | -6/Factory | First assault squad dispatched 8582 | -6/Factory | Build established: Bothacker-Mutant 8887 | -6/Factory | Discovered new exit (range 16) 9049 | -6/Factory | Destroyed by H-66 Slayer with Gauss Rifle Last Messages --------------- 08806_ ALERT: Cargo convoy en route, clear transfer corridor. 08835_ R-10 Processor collects Remote Datajack. 08839_ R-10 Processor collects Imp. Heat Sink. 08843_ >> Watcher Feeds: Feed link from W-25 Informer lost. 08861_ Y-54 Guardian Gatling Laser severed. 08863_ Y-54 Guardian destroyed. 08872_ Acquired Gatling Laser. 08887_ EXIT=FOUND 08904_ Triggered Shock Trap. 08904_ The floor emits a surge of raw power. 08904_ System corrupted (+1). 08924_ U-05 Engineer lays Concrete. 08986_ Acquired 10 matter. 08993_ K-01 Serf collects debris. 09019_ System corrupted: FCS attempts to trigger Gatling Laser. 09019_ System corrupted: Gatling Laser misfires. 09049_ Penetrated by Slug. Map ----- +----------------------------------------------------+ | ## # [ # * """ ### #! ##??? | | ## ##+######### """ ### # ##??? | | ## ## ! !!! ## """ ### %+ ##??? | | # #! !! ## + # ##??? | | # # ! !! ## ! ### # ##### | | # " # %+ ######## ## ###### | | + "T / ###+################### # | | # # """ # ### ! # # ! | | # # """S"" # ### # + ! | | # # """""" # ### ! # # | | ### ### # ### / # | | #### ######### ####+######### """ """ # # | | #### ########### # """ """ # # | | #?## ##???????## """"""" # """ """ # ###### | | #?## ###??????## """""""? # "" "" # ###### | | ### ##?####### """""""? # "" "" # ##???? | | ### ##?####### """"""" # # ##???? | | ##?## ]!!# # """ """ # ##???? | | ### ##?## ]! # """"""" # """ """ # ##???? | | ### ##?## !! + """"""" # """ """ # ##???? | | ############# # """"""" # "" "" # ##???? | | ############# ! # """"""" # ?"" "" # ##???? | | # # # ? # ##???? | | + # ########### ##???? | | # ? #######+################ ##???? | | # ? #### @ k ???? | | % ######### h ????? | | R ????? | | #################### h ????? | | # ############## ?????????? | | %+ ############## ##############?????????? | | # # # # """T""" #?????????? | | %# # #u # ?????????????????????? | | %# # + + ?????????????????????? | | %# # # # ?????????????????????? | | %# # # # ?????????????????????? | | ####### # # ?????????????????????? | | ####### ! * # # ?????????????????????? | | %##???## # #??????????????????????? | | !# ???## ! # #??????????????????????? | | # ##### # #??????????????????????? | | ####### # #??????????????????????? | | % + # #??????????????????????? | | #################### #??????????????????????? | | %# # ##########?????????????? | | # # ??????????? | | # # ##### ####?????????????? | | # """ """ """ """ # #??????????????????????? | | # """ """ """ """ # #??????????????????????? | | # """ """ """ """ # #??????????????????????? | +----------------------------------------------------+ Best States ------------- Heat Dissipation 95 Energy Generation 18 Energy Capacity 300 Matter Stores 300 Matter Capacity 300 Sight Range 16 Terrain Scan Density 10 EM Shielding 2 Armor Coverage 600 Resistance: TH 25 Resistance: EM 20 Core Shielding 30 Utility Shielding 33 Melee Speed Boost 20 Evasion (%) 64 Targeting Accuracy 5 Melee Accuracy 16 Recoil Reduction 4 Offensive Hacking 10 Relay Coupler Types 2 Relay Coupler Value 158 Item Schematics ----------------- None Robot Schematics ------------------ None Fabricated ------------ Nothing Repaired ---------- Nothing Alien Tech Used ----------------- None Achievements -------------- None Challenges ------------ None Game ------ Seed ChainGreatFlamer Manual? 0 Play Time 01:28:29 Cumulative 267.6 hours Start 2025.06.22 @ 19:39:45 End 2025.06.22 @ 21:08:12 Sessions 1 Manual Loads 0 Difficulty Rogue Special Mode None Game No. 132 Rogue 132 Adventurer 0 Explorer 0 Win Type - Total 16 Types 6/0/5/1/3/1/0/0/0/0 Lore% 83 Gallery% 71 Achievement% 67 Wizard Run 0 Options --------- Layout 1 ASCII 0 Keyboard 0 Movement Numpad Keybinds 0 Fullscreen 1 Font 24/Smallcaps Map View 50x35 Zoom Use 0% Tactical HUD 1 Map Filters NONE Filters NONE Steam 1 RUN: 2e294c1a-5cc1-4848-bf56-261e833683d1